bitfinex-derivatives/quotes_ETHF0:USTF0_20250911
["timestamp","ask_amount","ask_price","bid_price","bid_amount"]
[1757585550597,0.1165,4428.5,4427.8,1.14763999]
[1757585550803,0.4974,4428.4,4428.3,3.9014]
[1757585551498,0.2925,4428.4,4428.3,3.9014]
[1757585552405,0.4974,4428.4,4428.3,3.9014]
[1757585554098,0.2925,4428.4,4428.3,3.9014]
[1757585556507,0.4974,4428.4,4428.3,3.9014]
[1757585558206,0.2925,4428.4,4428.3,3.9014]
[1757585559307,0.4974,4428.4,4428.3,3.9014]
[1757585561807,0.1205,4429.0,4428.3,3.9014]
[1757585562012,0.2258,4428.9,4428.4,0.296]
[1757585562213,0.6426,4428.9,4428.8,0.195]
[1757585562407,0.4168,4428.9,4428.8,0.195]
[1757585562604,0.93509,4428.9,4428.8,0.195]
[1757585562810,0.7093,4428.9,4428.8,0.195]
[1757585563010,0.5363,4428.5,4428.4,0.195]
[1757585563313,0.8288,4428.5,4428.4,0.195]
[1757585563612,0.8288,4428.5,4428.4,0.6936]
[1757585564710,0.8288,4428.5,4428.4,0.3976]
[1757585565507,0.8288,4428.5,4428.4,0.195]
[1757585566011,0.8288,4428.5,4428.4,0.6936]
[1757585566211,0.8288,4428.5,4428.4,0.3976]
[1757585566612,0.8288,4428.5,4428.4,0.6936]
[1757585567815,0.2925,4428.9,4428.5,0.296]
[1757585568015,0.7631,4429.0,4428.9,0.195]
[1757585568218,1.31881972,4429.0,4428.9,0.195]
[1757585568517,0.67621972,4429.0,4428.9,0.6936]
[1757585568817,0.2925,4429.0,4428.9,0.6936]
[1757585569517,0.2925,4429.0,4428.9,3.9014]
[1757585569816,0.228,4429.6,4429.0,0.296]
[1757585570015,33.0886,4429.5,4429.4,0.195]
[1757585570416,33.3811,4429.5,4429.4,0.195]
[1757585571706,33.3811,4429.5,4429.1,0.296]
[1757585571909,0.3244,4429.0,4428.9,3.6054]
[1757585572109,0.6169,4429.0,4428.9,3.9014]
[1757585573112,0.4974,4429.0,4428.9,3.9014]
[1757585575412,0.6169,4429.0,4428.9,3.9014]
[1757585576614,0.8288,4429.0,4428.9,3.9014]
[1757585577412,0.8288,4429.0,4428.9,3.4028]
[1757585577617,0.8288,4429.0,4428.9,3.2078]
[1757585578617,0.8288,4429.0,4428.9,3.4128]
[1757585579017,0.1168,4428.5,4428.4,3.2078]
[1757585579222,0.8174,4428.5,4428.4,3.4128]
[1757585580023,0.8174,4428.5,4428.4,3.6189]
[1757585580225,0.8174,4428.5,4428.4,3.9221]
[1757585580924,0.4969,4428.5,4428.4,3.9221]
[1757585581723,0.2986,4428.5,4428.4,3.9221]
[1757585582524,0.4969,4428.5,4428.4,3.9221]
[1757585582916,0.2986,4428.5,4428.4,3.9221]
[1757585585023,0.5215,4429.0,4428.9,0.205]
[1757585585422,1.04589,4429.0,4428.9,0.205]
[1757585585625,1.04589,4429.0,4428.9,0.7143]
[1757585585925,0.8201,4429.0,4428.9,0.7143]
[1757585586126,0.8201,4429.0,4428.9,0.4111]
[1757585587024,0.8201,4429.0,4428.9,0.7143]
[1757585588328,0.8201,4429.0,4428.9,0.4111]
[1757585588629,0.6164,4429.0,4428.9,3.9221]
[1757585589620,0.2986,4429.0,4428.9,3.9221]
[1757585590627,0.2986,4429.4,4428.9,3.6189]
[1757585590830,0.3251,4429.5,4429.4,0.4111]
[1757585591129,0.8274,4429.5,4429.4,0.7143]
[1757585591927,0.8274,4429.5,4429.4,0.4111]
[1757585592823,1.0554,4429.5,4429.4,0.4111]
[1757585593124,0.2986,4430.3,4429.8,0.3032]
[1757585593332,0.2986,4430.3,4430.2,0.7143]
[1757585593626,0.7006,4430.3,4430.2,0.4111]
[1757585593924,0.7006,4430.3,4430.2,0.7143]
[1757585594724,0.4969,4430.3,4430.2,0.7143]
[1757585595123,0.2986,4430.3,4430.2,0.7143]
[1757585595628,0.4969,4430.3,4430.2,0.7143]
[1757585596632,0.2986,4430.3,4430.2,0.7143]
[1757585596830,0.402,4429.7,4429.6,3.4128]
[1757585597028,0.7006,4429.7,4429.6,3.4128]
[1757585597332,0.7006,4429.7,4429.6,3.9221]
[1757585597521,0.2986,4429.9,4429.6,3.6189]
[1757585597722,0.5188,4430.0,4429.9,0.205]
[1757585598128,0.228,4430.4,4430.0,0.3032]
[1757585598323,0.228,4430.4,4429.7,0.228]
[1757585598324,0.7249,4430.4,4430.3,0.7143]
[1757585598632,0.9286,4430.4,4430.3,0.7143]
[1757585600636,0.7006,4430.4,4430.3,0.7143]
[1757585603436,0.7006,4430.4,4430.3,0.4111]
[1757585606236,0.7006,4430.4,4430.3,0.7143]
[1757585607542,0.7006,4430.4,4430.3,0.4111]
[1757585611038,0.7006,4430.4,4430.3,0.7064]
[1757585617540,0.7006,4430.4,4430.3,0.4111]
[1757585618842,0.6908,4430.4,4430.3,0.4111]
[1757585622241,1.24773291,4430.4,4430.3,0.4111]
[1757585622832,1.24773291,4430.4,4430.3,0.205]
[1757585623028,1.24773291,4430.4,4430.2,3.2078]
[1757585623029,0.3051,4430.3,4430.2,3.2078]
[1757585623234,0.7039,4430.3,4430.2,3.2078]
[1757585623542,0.7039,4430.3,4430.2,3.4109]
[1757585623744,0.7039,4430.3,4430.2,3.2078]
[1757585625444,0.7039,4430.3,4430.2,3.6136]
[1757585625645,0.7039,4430.3,4430.2,3.9089]
[1757585628846,0.7039,4430.3,4430.2,3.9089]
[1757585629039,0.51,4430.3,4430.2,3.9089]
[1757585629543,0.7039,4430.3,4430.2,3.6136]
[1757585630346,0.7039,4430.3,4430.2,3.9089]
[1757585631648,0.3051,4430.3,4430.2,3.9089]
[1757585632647,0.3051,4430.6,4430.2,3.6136]
[1757585632834,0.3051,4430.4,4430.3,0.2953]
[1757585633140,0.85975601,4430.4,4430.3,0.7011]
[1757585633345,1.06465601,4430.4,4430.3,0.7011]
[1757585634548,0.3051,4430.3,4430.2,3.2078]
[1757585634749,0.7039,4430.3,4430.2,3.4109]
[1757585634944,0.7039,4430.3,4430.2,3.2078]
[1757585635147,0.7039,4429.9,4429.8,0.228]
[1757585635352,0.7039,4429.8,4429.7,0.2031]
[1757585635847,0.7039,4429.8,4429.7,0.4058]
[1757585637650,0.7039,4429.8,4429.7,0.7242]
[1757585638752,0.7039,4429.8,4429.7,0.4058]
[1757585639345,0.7039,4429.8,4429.7,0.2031]
[1757585640852,0.7039,4429.8,4429.7,0.402]
[1757585641050,0.51,4429.8,4429.7,0.7204]
[1757585641453,0.3051,4429.8,4429.7,0.7204]
[1757585641652,0.3212,4430.1,4429.7,0.402]
[1757585641851,0.5311,4430.1,4430.0,3.9382]
[1757585642353,0.7283,4430.1,4430.0,3.9382]
[1757585642552,0.7283,4430.1,4430.0,3.6198]
[1757585643053,0.7283,4430.1,4430.0,3.9382]
[1757585646754,0.7283,4430.1,4430.0,3.6198]
[1757585646957,0.7283,4430.1,4430.0,3.2078]
[1757585647543,0.63283,4430.1,4429.5,3.2078]
[1757585647749,0.8492,4429.0,4428.9,3.6489]
[1757585647956,0.3212,4429.0,4428.9,4.1662]
[1757585648157,0.1209,4429.5,4429.0,0.3184]
[1757585648454,0.528,4429.5,4428.9,3.4358]
[1757585648653,0.3308,4429.0,4428.9,4.1662]
[1757585648854,0.652,4429.0,4428.9,3.9382]
[1757585649251,0.8492,4429.0,4428.9,3.9382]
[1757585650353,0.8492,4429.0,4428.9,3.6198]
[1757585651261,0.8492,4429.0,4428.9,3.9382]
[1757585651954,0.5311,4429.0,4428.9,3.9382]
[1757585655354,0.3212,4429.5,4429.4,0.412]
[1757585655556,0.5311,4429.5,4429.4,3.9382]
[1757585655759,0.8492,4429.5,4429.4,3.6198]
[1757585656660,0.8492,4429.5,4429.4,3.4209]
[1757585656855,0.8492,4429.5,4429.4,3.2078]
[1757585657255,0.3212,4429.4,4428.9,3.2078]
[1757585657455,0.7283,4429.4,4429.3,0.2131]
[1757585659768,0.8492,4429.0,4428.9,3.4209]
[1757585666167,0.228,4429.6,4429.5,0.3184]
[1757585666368,0.4379,4429.6,4429.5,0.7304]
[1757585666770,0.7591,4429.6,4429.5,0.7304]
[1757585666971,0.5311,4429.6,4429.5,0.7304]
[1757585674471,0.7301,4429.6,4429.5,0.7304]
[1757585677079,32.519,4430.3,4429.8,0.3931]
[1757585677080,0.2961,4429.9,4429.8,0.3931]
[1757585677269,0.5241,4429.9,4429.8,0.7014]
[1757585677869,0.2961,4429.9,4429.8,0.7014]
[1757585679272,0.2961,4430.0,4429.9,0.3083]
[1757585679476,0.2961,4430.0,4429.9,0.7014]
[1757585680566,0.2961,4429.9,4429.8,0.1943]
[1757585680773,0.2961,4429.9,4429.8,0.3931]
[1757585680774,0.7065,4429.9,4429.8,0.3931]
[1757585681071,0.7065,4429.9,4429.8,0.7014]
[1757585681782,0.7065,4429.9,4429.8,0.3931]
[1757585682280,0.4104,4429.9,4429.5,3.2078]
[1757585682478,0.7065,4429.6,4429.5,3.2078]
[1757585682873,0.7065,4429.6,4429.5,3.4066]
[1757585683073,0.7065,4429.6,4429.5,3.6009]
[1757585687185,0.7065,4429.6,4429.5,3.9092]
[1757585687383,0.2961,4430.0,4429.9,0.3931]
[1757585687588,0.2114,4430.5,4430.4,0.7014]
[1757585688079,0.5075,4430.5,4430.4,0.7014]
[1757585690083,0.2961,4430.4,4430.0,3.5161]
[1757585690289,0.7065,4430.1,4430.0,3.6009]
[1757585690489,0.7065,4430.1,4430.0,3.9092]
[1757585693691,0.7065,4430.1,4430.0,3.6009]
[1757585694098,0.7065,4430.1,4430.0,3.9092]
[1757585696103,0.5075,4430.1,4430.0,3.9092]
[1757585697003,0.2961,4430.1,4430.0,4.5312]
[1757585697304,0.2961,4430.1,4430.0,5.4227]
[1757585697904,0.5075,4430.1,4430.0,5.4227]
[1757585698699,0.7024,4430.1,4430.0,4.7213]
[1757585699007,0.7024,4430.1,4430.0,1.5135]
[1757585700598,4.92813,4430.1,4430.0,1.5135]
[1757585700904,4.7024,4430.1,4430.0,1.5135]
[1757585701204,5.25196322,4430.1,4430.0,1.5135]
[1757585705209,5.47996322,4430.1,4430.0,1.5135]
[1757585706608,1.47996322,4430.1,4430.0,1.7149]
[1757585709010,1.25196322,4430.1,4430.0,1.7149]
[1757585709213,1.47996322,4430.1,4430.0,1.7149]
[1757585709709,1.47996322,4430.1,4430.0,1.9219]
[1757585709911,1.47996322,4430.1,4430.0,2.2434]
[1757585710511,1.47996322,4430.1,4430.0,1.9219]
[1757585710811,1.47996322,4430.1,4430.0,1.5135]
[1757585711408,1.25196322,4430.1,4430.0,1.5135]
[1757585711607,1.47996322,4430.1,4430.0,1.5135]
[1757585713116,1.47841401,4430.1,4430.0,1.7149]
[1757585717318,1.47841401,4430.1,4430.0,2.2434]
[1757585717819,1.28081401,4430.1,4430.0,2.2434]
[1757585718014,1.47571401,4430.1,4430.0,2.2434]
[1757585718721,1.47571401,4430.1,4430.0,1.9219]
[1757585726527,1.47571401,4430.1,4430.0,2.2433]
[1757585727228,1.47571401,4430.1,4430.0,2.5648]
[1757585732435,1.47571401,4430.1,4430.0,2.2433]
[1757585732732,1.47571401,4430.1,4430.0,2.0363]
[1757585733031,1.24771401,4430.1,4430.0,2.0363]
[1757585733230,1.47571401,4430.1,4430.0,2.0363]
[1757585733631,1.47571401,4430.1,4430.0,2.5494]
[1757585734537,0.9277,4430.1,4430.0,2.5494]
[1757585734829,1.47614048,4430.1,4430.0,2.5494]
[1757585735936,1.47614048,4430.1,4430.0,2.2307]
[1757585737824,1.47614048,4430.1,4430.0,1.8349]
[1757585738327,0.5314,4429.2,4429.1,0.7132]
[1757585738532,1.51397459,4429.2,4429.1,0.7132]
[1757585738929,1.51397459,4429.2,4429.1,0.3945]
[1757585740832,0.1175,4429.0,4428.9,0.2001]
[1757585741026,1.083,4429.0,4428.9,0.2001]
[1757585741225,1.63147459,4429.0,4428.9,0.7132]
[1757585742136,1.63147459,4429.0,4428.9,0.3945]
[1757585742524,0.7375,4428.8,4428.7,1.0089]
[1757585742730,1.28620329,4428.8,4428.7,1.0089]
[1757585745035,1.28620329,4428.8,4428.3,0.684]
[1757585745238,0.7375,4428.8,4428.7,0.2001]
[1757585745438,1.5135294,4428.8,4428.7,0.2001]
[1757585746136,0.7375,4428.4,4428.3,0.684]
[1757585746440,1.51338702,4428.4,4428.3,0.2001]
[1757585747736,1.51338702,4428.4,4427.6,0.3187]
[1757585747933,0.5314,4427.7,4427.6,0.93903999]
[1757585748137,0.7594,4427.7,4427.6,0.93903999]
[1757585748537,0.9655,4427.7,4427.6,0.7132]
[1757585748733,0.9655,4427.7,4427.6,0.3945]
[1757585749337,0.9655,4427.7,4427.6,0.7132]
[1757585751937,0.9655,4427.7,4427.6,0.3945]
[1757585752538,0.1175,4427.5,4427.3,4.8099]
[1757585752847,0.9655,4427.4,4427.3,4.2366]
[1757585753037,0.7375,4427.4,4427.3,4.2366]
[1757585753337,0.9655,4427.4,4427.3,4.431]
[1757585753542,0.9655,4427.4,4427.3,4.7497]
[1757585753745,0.9655,4427.4,4427.3,3.921]
[1757585754335,0.9655,4427.4,4427.3,0.3945]
[1757585754735,0.9655,4427.4,4427.3,0.2001]
[1757585755939,0.9655,4427.4,4427.0,0.3187]
[1757585756142,0.3173,4427.3,4427.0,0.7579]
[1757585756446,0.228,4427.4,4427.0,0.958]
[1757585756447,0.7375,4427.1,4427.0,0.958]
[1757585756744,0.9655,4427.1,4427.0,0.958]
[1757585757146,0.7594,4427.1,4427.0,1.4711]
[1757585757943,0.7594,4427.1,4427.0,0.7132]
[1757585759244,0.3049,4427.4,4427.0,0.3945]
[1757585759441,0.3049,4427.8,4427.6,0.305]
[1757585759647,0.3049,4427.8,4427.7,0.7175]
[1757585759850,0.5329,4427.8,4427.7,0.7175]
[1757585760042,0.7347,4427.8,4427.7,0.7175]
[1757585765263,3.2078,4428.1,4427.7,0.7175]
[1757585765555,33.0357,4428.4,4428.3,0.7175]
[1757585765756,33.4748,4428.4,4428.3,0.7175]
[1757585766958,33.4748,4428.4,4428.3,0.4125]
[1757585767154,32.529,4428.4,4428.3,0.7175]
[1757585767458,0.228,4428.4,4428.3,3.9253]
[1757585767653,0.036,4428.6,4428.3,3.9253]
[1757585767857,0.036,4428.6,4428.5,0.4728]
[1757585768157,0.036,4428.6,4428.5,0.7778]
[1757585768557,0.036,4428.6,4428.5,1.00361]
[1757585768760,0.036,4428.6,4428.5,0.7778]
[1757585769154,0.036,4428.6,4428.5,4.7778]
[1757585770255,0.228,4428.9,4428.6,0.305]
[1757585770560,0.228,4428.9,4428.8,0.7175]
[1757585771259,0.228,4429.0,4428.9,0.7175]
[1757585771856,0.3049,4429.2,4428.9,0.4125]
[1757585772161,0.228,4429.1,4429.0,0.7175]
[1757585772363,0.228,4429.1,4429.0,0.8042]
[1757585772858,0.125,4430.0,4429.0,0.4992]
[1757585773058,0.0363,4429.3,4429.2,0.4125]
[1757585773261,0.0363,4429.3,4429.2,0.7175]
[1757585773456,0.3412,4429.3,4429.2,0.7175]
[1757585775562,0.543,4429.3,4429.2,0.7175]
[1757585776262,0.5067,4429.3,4429.2,0.7175]
[1757585776969,0.3049,4429.4,4429.3,0.7175]
[1757585777965,0.5067,4429.4,4429.3,0.7175]
[1757585778167,0.5067,4429.4,4429.3,0.4125]
[1757585778168,0.7178,4429.4,4429.3,0.4125]
[1757585783967,0.7178,4429.4,4429.3,0.7175]
[1757585785568,0.3049,4429.4,4429.3,0.7175]
[1757585786376,0.5067,4429.4,4429.3,0.7175]
[1757585786578,0.7178,4429.4,4429.3,0.7175]
[1757585786872,0.7178,4429.4,4429.3,0.4125]
[1757585788271,0.9458,4429.4,4429.3,0.7178]
[1757585788577,0.3906,4428.9,4428.8,3.4202]
[1757585788776,0.6864,4428.9,4428.8,3.2078]
[1757585789068,0.9144,4428.9,4428.8,3.2078]
[1757585789269,0.1262,4428.5,4428.1,3.5131]
[1757585789577,0.6864,4428.2,4428.1,3.9268]
[1757585791378,0.4921,4428.2,4428.1,3.9268]
[1757585795975,0.6864,4428.2,4428.1,3.9268]
[1757585796178,0.6864,4428.2,4428.1,3.6215]
[1757585796573,0.6864,4428.2,4428.1,3.2078]
[1757585796772,0.2958,4428.1,4428.0,0.8121]
[1757585796981,0.6864,4428.1,4428.0,0.8121]
[1757585797576,4.6864,4428.1,4428.0,0.8121]
[1757585797774,5.23372518,4428.1,4428.0,0.8121]
[1757585798371,4.6864,4428.1,4428.0,0.8121]
[1757585799379,0.6864,4428.1,4428.0,0.8121]
[1757585800876,4.6864,4428.1,4428.0,0.8121]
[1757585801272,5.23322563,4428.1,4428.0,0.8121]
[1757585801676,5.23322563,4428.1,4428.0,0.4906]
[1757585801890,0.6864,4427.0,4426.9,1.6638]
[1757585802175,0.9144,4427.0,4426.9,1.6638]
[1757585803582,0.9144,4427.0,4426.9,0.719]
[1757585805276,0.9144,4427.0,4426.9,0.5177]
[1757585805277,1.0406,4427.0,4426.9,0.5177]
[1757585806978,1.0406,4427.0,4426.9,0.719]
[1757585807178,0.9144,4427.0,4426.9,0.719]
[1757585809578,0.0369,4427.2,4427.0,0.1269]
[1757585809783,0.0369,4427.2,4427.1,0.719]
[1757585809987,0.4612,4427.2,4427.1,0.719]
[1757585810189,0.757,4427.2,4427.1,0.719]
[1757585810385,0.7201,4427.2,4427.1,0.719]
[1757585814082,0.4921,4427.2,4427.1,0.719]
[1757585814281,0.4243,4427.2,4427.1,0.719]
[1757585814890,0.7201,4427.2,4427.1,0.719]
[1757585816385,0.0364,4427.4,4427.2,0.3053]
[1757585816689,0.0364,4427.4,4427.3,0.719]
[1757585816985,0.228,4427.5,4427.3,0.4137]
[1757585817185,0.228,4427.5,4427.4,0.6971]
[1757585817885,0.2958,4428.2,4428.1,0.1945]
[1757585818090,0.9413,4428.2,4428.1,0.6881]
[1757585820488,0.4175,4427.8,4427.7,0.4908]
[1757585820695,0.723,4427.8,4427.7,0.4908]
[1757585820894,0.723,4427.8,4427.7,0.6881]
[1757585824494,0.723,4427.8,4427.7,1.6462]
[1757585824792,0.723,4427.8,4427.7,0.9581]
[1757585826593,1.27048061,4427.8,4427.7,0.9581]
[1757585826792,1.45316607,4427.8,4427.7,0.9581]
[1757585827296,1.27048061,4427.8,4427.7,0.9581]
[1757585828299,1.45035358,4427.8,4427.7,0.9581]
[1757585830994,1.27048061,4427.8,4427.7,0.9581]
[1757585834702,1.27048061,4427.8,4427.7,1.4489]
[1757585835402,1.27048061,4427.8,4427.7,1.6462]
[1757585835702,1.19298061,4427.8,4427.7,1.6462]
[1757585835902,0.4375,4427.8,4427.7,1.6462]
[1757585836507,0.951,4427.8,4427.7,1.6462]
[1757585839102,1.50259802,4427.8,4427.7,1.6462]
[1757585839506,1.50259802,4427.8,4427.7,1.4489]
[1757585843716,1.50259802,4427.8,4427.7,1.6462]
[1757585848219,0.77959802,4427.8,4427.7,1.6462]
[1757585849624,1.28769802,4427.8,4427.7,1.6462]
[1757585856722,1.48599802,4427.8,4427.7,1.6462]
[1757585857831,1.48599802,4427.8,4427.7,1.1526]
[1757585858022,1.48599802,4427.8,4427.7,0.9581]
[1757585864034,1.66624327,4427.8,4427.7,0.9581]
[1757585864236,1.66624327,4427.8,4426.5,3.294]
[1757585864237,1.37104327,4427.8,4426.5,3.294]
[1757585864442,0.7064,4427.2,4427.1,0.1997]
[1757585864636,1.48599802,4427.2,4427.1,0.1997]
[1757585865537,1.48599802,4427.2,4427.1,0.4005]
[1757585866135,1.48599802,4427.2,4427.1,0.709]
[1757585867442,1.48599802,4427.2,4427.1,0.4005]
[1757585869344,1.48599802,4427.2,4427.1,0.1997]
[1757585870146,1.48599802,4427.2,4426.7,0.6587]
[1757585870342,0.3184,4427.0,4426.9,0.1997]
[1757585870548,1.0545,4427.0,4426.9,0.1997]
[1757585871045,0.8562,4427.0,4426.9,0.709]
[1757585873342,0.2952,4427.2,4427.1,0.4005]
[1757585873549,0.5232,4427.2,4427.1,0.709]
[1757585875756,0.7361,4427.2,4427.1,0.709]
[1757585875948,0.9344,4427.2,4427.1,0.4005]
[1757585876146,0.9344,4427.2,4427.1,0.709]
[1757585876341,0.7064,4427.2,4427.1,0.709]
[1757585876652,0.9344,4427.2,4427.1,0.709]
[1757585880960,0.228,4427.2,4427.1,0.7079]
[1757585881356,0.5274,4427.2,4427.1,0.7079]
[1757585881564,0.731,4427.2,4427.1,0.7079]
[1757585882154,0.9401,4427.2,4427.1,0.7079]
[1757585883963,0.9401,4427.2,4427.1,0.4005]
[1757585884762,1.49851803,4427.2,4427.1,0.4005]
[1757585885059,1.49851803,4427.2,4427.1,0.1997]
[1757585885754,0.7121,4426.9,4426.8,0.997]
[1757585885958,0.9401,4426.9,4426.8,0.997]
[1757585886263,0.9401,4426.9,4426.8,0.1978]
[1757585886760,0.9401,4426.9,4426.8,0.7039]
[1757585890960,0.9401,4426.9,4426.8,0.3965]
[1757585891469,0.9401,4426.9,4426.8,0.7039]
[1757585892165,0.9401,4426.9,4426.8,0.3965]
[1757585892363,0.228,4426.9,4426.8,0.7039]
[1757585892960,0.1201,4428.0,4427.9,0.3965]
[1757585893154,0.228,4428.1,4427.9,0.3965]
[1757585893354,0.228,4428.1,4428.0,0.827]
[1757585893558,0.2994,4428.9,4428.4,0.3074]
[1757585893771,1.49878215,4428.8,4428.7,0.3965]
[1757585895067,0.3374,4429.0,4428.8,0.3074]
[1757585895258,0.266,4429.0,4428.9,0.7039]
[1757585895861,0.038,4429.0,4428.9,0.7039]
[1757585896269,0.266,4429.0,4428.9,0.7039]
[1757585898369,0.228,4429.0,4428.9,0.7039]
[1757585899260,0.1226,4430.0,4428.9,0.3965]
[1757585899459,0.6407,4429.4,4429.3,0.3965]
[1757585899665,0.6407,4429.4,4429.3,0.7039]
[1757585899864,0.4127,4429.4,4429.3,0.7039]
[1757585900067,0.9401,4429.4,4429.3,0.7039]
[1757585901472,0.7121,4429.4,4429.3,0.7039]
[1757585901770,0.9391,4429.4,4429.3,0.7039]
[1757585903669,0.7121,4429.4,4429.3,0.7039]
[1757585903866,0.7121,4429.4,4428.6,3.2078]
[1757585903867,0.1226,4429.0,4428.6,3.2078]
[1757585904076,0.1226,4429.0,4428.6,3.9117]
[1757585904077,0.7121,4428.7,4428.6,3.9117]
[1757585904466,0.503,4428.7,4428.6,3.9117]
[1757585905766,0.2994,4428.7,4428.6,3.9117]
[1757585906071,0.503,4428.7,4428.6,3.9117]
[1757585907075,0.2994,4428.7,4428.6,3.9117]
[1757585908364,0.3139,4428.9,4428.6,3.6043]
[1757585908564,0.3139,4428.9,4428.8,0.6986]
[1757585908770,0.5122,4428.9,4428.8,0.6986]
[1757585911773,0.7265,4428.9,4428.8,0.6986]
[1757585917378,0.7265,4428.9,4428.8,0.4045]
[1757585918980,0.7265,4428.9,4428.8,0.6986]
[1757585921175,0.7265,4428.9,4428.8,0.4045]
[1757585921478,0.7265,4428.9,4428.8,0.6986]
[1757585924279,0.5376,4428.5,4428.4,0.0519]
[1757585924586,1.63805519,4428.5,4428.4,0.0519]
[1757585926082,1.32415519,4428.5,4427.4,3.5019]
[1757585926282,0.5122,4427.5,4427.4,3.9064]
[1757585928074,0.3139,4427.5,4427.4,3.9064]
[1757585928477,0.5122,4427.5,4427.4,3.9064]
[1757585933887,0.8515,4427.5,4427.4,3.9064]
[1757585934382,0.8515,4427.5,4427.0,0.0519]
[1757585935687,0.8515,4427.5,4426.5,0.9517]
[1757585935688,0.7265,4427.1,4426.5,0.9517]
[1757585935884,0.7265,4426.6,4426.5,0.9517]
[1757585937584,0.4126,4426.6,4426.4,3.2078]
[1757585937787,0.8433,4426.5,4426.4,3.2078]
[1757585939187,0.8433,4426.5,4426.4,3.4135]
[1757585942997,0.8433,4426.5,4425.9,3.2078]
[1757585943195,0.8433,4426.0,4425.9,3.4135]
[1757585943396,0.8433,4426.0,4425.9,3.7303]
[1757585946994,0.8433,4426.0,4425.9,3.9341]
[1757585949103,0.8433,4426.0,4425.9,3.4135]
[1757585949294,0.8433,4426.0,4425.9,3.7303]
[1757585949600,0.8433,4426.0,4425.9,3.9341]
[1757585956616,0.7178,4426.0,4425.9,3.9341]
[1757585956813,0.5084,4426.0,4425.9,3.9341]
[1757585957607,0.0412,4426.2,4425.9,3.9341]
[1757585957608,0.0412,4426.2,4426.1,0.7263]
[1757585957807,0.3073,4427.1,4426.8,0.3168]
[1757585958007,0.5343,4427.0,4426.9,0.4095]
[1757585958311,0.7354,4427.0,4426.9,0.7263]
[1757585959108,0.3073,4427.7,4427.6,0.4095]
[1757585959401,4.42691064,4428.4,4427.5,0.1839]
[1757585959402,0.3073,4427.8,4427.5,0.1839]
[1757585959707,0.3073,4427.8,4427.7,0.5934]
[1757585959899,0.5084,4427.8,4427.7,0.5934]
[1757585960407,0.3073,4427.8,4427.7,0.5934]
[1757585960810,0.3073,4428.3,4427.8,0.1839]
[1757585960999,0.1255,4428.5,4428.2,0.4095]
[1757585961203,0.3073,4428.5,4428.2,0.4095]
[1757585961710,0.7354,4428.7,4428.6,0.4095]
[1757585962100,0.5343,4428.7,4428.6,0.5934]
[1757585962705,0.7354,4428.7,4428.6,0.5934]
[1757585964198,0.1255,4428.5,4428.1,3.2078]
[1757585964407,0.4105,4428.2,4427.5,3.2078]
[1757585964600,0.2011,4427.6,4427.5,3.8012]
[1757585964798,0.5084,4427.6,4427.5,3.8012]
[1757585966306,0.3073,4427.6,4427.5,3.8012]
[1757585971604,0.7027,4427.6,4427.5,3.2078]
[1757585971913,0.8294,4427.0,4426.9,3.6238]
[1757585972710,0.6351,4427.0,4426.9,3.8075]
[1757585972910,0.4211,4427.0,4426.9,3.8075]
[1757585976709,0.6351,4427.0,4426.9,3.8075]
[1757585977908,0.8294,4427.0,4426.9,3.6238]
[1757585980315,0.6351,4427.0,4426.9,3.8075]
[1757585980610,0.1265,4427.5,4427.0,0.1837]
[1757585980815,0.3405,4427.5,4427.4,0.416]
[1757585981322,0.6351,4427.5,4427.4,0.416]
[1757585981514,0.8294,4427.5,4427.4,0.416]
[1757585982418,0.8294,4427.5,4427.4,0.2062]
[1757585982615,0.3405,4427.0,4426.9,3.6238]
[1757585982809,0.6351,4427.0,4426.9,3.6238]
[1757585983516,0.6351,4427.0,4426.9,3.8075]
[1757585983822,0.8294,4427.0,4426.9,3.6238]
[1757585984809,0.6351,4427.0,4426.9,3.8075]
[1757585985012,0.4211,4427.5,4427.4,0.416]
[1757585985219,0.4211,4427.5,4427.4,0.5997]
[1757585985720,0.8294,4427.5,4427.4,0.416]
[1757585986215,0.3405,4427.0,4426.9,3.6238]
[1757585986413,0.3405,4426.5,4426.4,3.2078]
[1757585986719,0.1265,4426.0,4425.9,0.416]
[1757585986916,0.3405,4426.0,4425.9,0.416]
[1757585987317,0.6351,4426.0,4425.9,0.416]
[1757585987614,0.8294,4426.0,4425.9,0.416]
[1757585990923,0.5348,4426.0,4425.8,3.2078]
[1757585991118,0.2946,4425.9,4425.8,3.2078]
[1757585991314,0.7029,4425.9,4425.8,3.414]
[1757585992221,0.7029,4425.9,4425.8,3.6238]
[1757585993718,0.7029,4425.9,4425.8,3.8073]
[1757585994218,0.7029,4425.9,4425.8,3.6238]
[1757585996222,0.7029,4425.9,4425.8,3.414]
[1757585996817,0.7029,4425.9,4425.8,3.6238]
[1757585998626,0.7029,4425.9,4425.8,3.8075]
[1757585998824,0.1265,4426.5,4425.8,3.6238]
[1757585999031,0.5629,4426.5,4426.4,0.5847]
[1757585999223,0.5629,4426.5,4426.4,0.401]
[1757585999527,1.0558,4426.5,4426.4,0.401]
[1757586000129,0.8552,4426.5,4426.4,0.5847]
[1757586000522,3.2078,4426.9,4426.4,0.5847]
[1757586000523,0.2923,4426.9,4426.4,3.6088]
[1757586000715,0.7287,4426.9,4426.8,0.5847]